fUST/lending_fUST_20250618
["ID","MTS","AMOUNT","RATE_DAILY","PERIOD"]
[366399426,1750231274254,172.619959,0.00013699,2]
[366399427,1750231414364,3647.62620151,0.000181,2]
[366399428,1750231414389,1352.37379849,0.000181,2]
[366399429,1750231431325,-195.7999762,0.00018527,2]
[366399430,1750231442351,-160.0,0.00018527,2]
[366399431,1750231473365,-154.16074048,0.00018527,2]
[366399432,1750231485356,-160.0,0.00018527,2]
[366399433,1750231497530,-183.66,0.00018527,2]
[366399434,1750231503053,-166.89531231,0.00018527,2]
[366399435,1750231516363,-180.27555046,0.00018527,2]
[366399437,1750231557859,-173.3,0.00018527,2]
[366399438,1750231564666,-193.181,0.00018527,2]
[366399439,1750231564696,162.7938292,0.00018029,2]
[366399440,1750231579449,-220.48295748,0.00018527,2]
[366399441,1750231621231,-197.97,0.00018342,2]
[366399442,1750231715385,1528.45495239,0.00018,2]
[366399443,1750231722025,16000.0,0.00015,2]
[366399444,1750231722845,209.59342708,0.00016,2]
[366399445,1750231724615,746.78399284,0.0001,2]
[366399446,1750231724639,16301.5865161,0.0001,2]
[366399447,1750231726933,-219.25135374,0.00018342,2]
[366399448,1750231744043,-200.0,0.00018342,2]
[366399449,1750231778497,-168.03742075,0.00018342,2]
[366399450,1750231778526,291.2193352,0.00017934,2]
[366399451,1750231810631,3407.1941487,0.000181,2]
[366399452,1750231810656,1592.8058513,0.000181,2]
[366399453,1750231827797,-166.283178,0.00018428,2]
[366399498,1750231832168,-4238.83025514,0.00018428,2]
[366399737,1750231834567,-157.74935064,0.00018428,2]
[366399851,1750231838428,-437.13721622,0.00018428,2]
[366399853,1750231838437,-169.65996769,0.00018614,2]
[366399855,1750231838446,-155.0,0.00018714,2]
[366399857,1750231838455,-176.0325545,0.00018853,2]
[366399859,1750231838465,-639.62647135,0.000189,2]
[366399860,1750231838475,-467.12007473,0.00018953,2]
[366399862,1750231838485,-300.0,0.00019051,2]
[366399864,1750231838494,-300.0,0.00019051,2]
[366399866,1750231838503,-300.0,0.00019051,2]
[366399868,1750231838512,-1200.0,0.00019051,2]
[366399870,1750231838522,-926.39285192,0.00019051,2]
[366399872,1750231838531,-926.39285192,0.00019051,2]
[366399874,1750231838540,-926.39285192,0.00019051,2]
[366399876,1750231838549,-926.39285192,0.00019051,2]
[366399878,1750231838559,-926.39285192,0.00019051,2]
[366399880,1750231838569,-926.39285192,0.00019051,2]
[366399881,1750231838579,-926.39285192,0.00019051,2]
[366399883,1750231838588,-926.39285192,0.00019051,2]
[366399885,1750231838598,-926.39285192,0.00019051,2]
[366399887,1750231838607,-926.39285192,0.00019051,2]
[366399889,1750231838616,-926.39285192,0.00019051,2]
[366399891,1750231838625,-926.39285192,0.00019051,2]
[366399893,1750231838634,-926.39285192,0.00019051,2]
[366399895,1750231838644,-926.39285192,0.00019051,2]
[366399897,1750231838653,-926.39285192,0.00019051,2]
[366399899,1750231838662,-926.39285192,0.00019051,2]
[366399900,1750231838671,-926.39285192,0.00019051,2]
[366399902,1750231838681,-926.39285192,0.00019051,2]
[366399904,1750231838690,-500.0,0.00019051,2]
[366399906,1750231838700,-500.0,0.00019051,2]
[366399908,1750231838710,-500.0,0.00019051,2]
[366399910,1750231838719,-500.0,0.00019051,2]
[366399912,1750231838729,-290.90552317,0.00019051,2]
[366399914,1750231838738,-555.80483144,0.00019051,2]
[366399916,1750231838747,-500.0,0.00019051,2]
[366399917,1750231838756,-511.93149168,0.00019051,2]
[366399919,1750231838766,-500.0,0.00019051,2]
[366399921,1750231838775,-457.1904504,0.00019051,2]
[366399923,1750231838785,-500.0,0.00019051,2]
[366399925,1750231838794,-500.0,0.00019051,2]
[366399927,1750231838803,-500.0,0.00019051,2]
[366399928,1750231838812,-500.0,0.00019051,2]
[366399930,1750231838821,-500.0,0.00019051,2]
[366399932,1750231838833,-555.80483144,0.00019051,2]
[366399933,1750231838843,-500.0,0.00019051,2]
[366399936,1750231838852,-500.0,0.00019051,2]
[366399937,1750231838861,-500.0,0.00019051,2]
[366399939,1750231838870,-500.0,0.00019051,2]
[366399941,1750231838880,-500.0,0.00019051,2]
[366399943,1750231838889,-256.32305983,0.00019051,2]
[366399945,1750231838899,-500.0,0.00019051,2]
[366399947,1750231838908,-500.0,0.00019051,2]
[366399949,1750231838917,-500.0,0.00019051,2]
[366399951,1750231838926,-500.0,0.00019051,2]
[366399953,1750231838936,-500.0,0.00019051,2]
[366399955,1750231838946,-500.0,0.00019051,2]
[366399957,1750231838955,-555.80483144,0.00019051,2]
[366399959,1750231838965,-500.0,0.00019051,2]
[366399961,1750231838974,-500.0,0.00019051,2]
[366399963,1750231838983,-380.86009033,0.00019051,2]
[366399965,1750231838993,-500.0,0.00019051,2]
[366399967,1750231839003,-500.0,0.00019051,2]
[366399969,1750231839012,-500.0,0.00019051,2]
[366399971,1750231839021,-500.0,0.00019051,2]
[366399973,1750231839031,-500.0,0.00019051,2]
[366399975,1750231839040,-555.80483144,0.00019051,2]
[366399977,1750231839050,-500.0,0.00019051,2]
[366399979,1750231839059,-500.0,0.00019051,2]
[366399981,1750231839069,-500.0,0.00019051,2]
[366399983,1750231839079,-500.0,0.00019051,2]
[366399985,1750231839088,-500.0,0.00019051,2]
[366399987,1750231839098,-500.0,0.00019051,2]
[366399989,1750231839108,-500.0,0.00019051,2]
[366399991,1750231839119,-500.0,0.00019051,2]
[366399993,1750231839129,-500.0,0.00019051,2]
[366399995,1750231839139,-555.80483144,0.00019051,2]
[366399997,1750231839149,-500.0,0.00019051,2]
[366399999,1750231839158,-500.0,0.00019051,2]
[366400001,1750231839168,-500.0,0.00019051,2]
[366400003,1750231839178,-500.0,0.00019051,2]
[366400005,1750231839187,-500.0,0.00019051,2]
[366400007,1750231839197,-500.0,0.00019051,2]
[366400009,1750231839206,-500.0,0.00019051,2]
[366400011,1750231839216,-500.0,0.00019051,2]
[366400013,1750231839226,-500.0,0.00019051,2]
[366400015,1750231839235,-555.80483144,0.00019051,2]
[366400018,1750231839253,-500.0,0.00019051,2]
[366400020,1750231839266,-500.0,0.00019051,2]
[366400022,1750231839276,-500.0,0.00019051,2]
[366400024,1750231839286,-500.0,0.00019051,2]
[366400026,1750231839295,-500.0,0.00019051,2]
[366400028,1750231839305,-500.0,0.00019051,2]
[366400030,1750231839315,-500.0,0.00019051,2]
[366400032,1750231839325,-555.80483144,0.00019051,2]
[366400034,1750231839335,-500.0,0.00019051,2]
[366400037,1750231839345,-500.0,0.00019051,2]
[366400039,1750231839355,-500.0,0.00019051,2]
[366400041,1750231839365,-500.0,0.00019051,2]
[366400042,1750231839375,-500.0,0.00019051,2]
[366400043,1750231839384,-500.0,0.00019051,2]
[366400044,1750231839394,-500.0,0.00019051,2]
[366400045,1750231839403,-500.0,0.00019051,2]
[366400046,1750231839413,-500.0,0.00019051,2]
[366400047,1750231839423,-555.80483144,0.00019051,2]
[366400048,1750231839433,-500.0,0.00019051,2]
[366400049,1750231839442,-500.0,0.00019051,2]
[366400050,1750231839452,-500.0,0.00019051,2]
[366400051,1750231839462,-500.0,0.00019051,2]
[366400052,1750231839472,-500.0,0.00019051,2]
[366400053,1750231839482,-500.0,0.00019051,2]
[366400054,1750231839492,-555.80483144,0.00019051,2]
[366400055,1750231839502,-500.0,0.00019051,2]
[366400056,1750231839512,-500.0,0.00019051,2]
[366400057,1750231839521,-500.0,0.00019051,2]
[366400058,1750231839532,-500.0,0.00019051,2]
[366400059,1750231839542,-500.0,0.00019051,2]
[366400060,1750231839552,-500.0,0.00019051,2]
[366400061,1750231839562,-500.0,0.00019051,2]
[366400062,1750231839572,-500.0,0.00019051,2]
[366400063,1750231839582,-500.0,0.00019051,2]
[366400064,1750231839592,-500.0,0.00019051,2]
[366400065,1750231839602,-500.0,0.00019051,2]
[366400066,1750231839612,-500.0,0.00019051,2]
[366400067,1750231839623,-500.0,0.00019051,2]
[366400068,1750231839633,-500.0,0.00019051,2]
[366400069,1750231839643,-500.0,0.00019051,2]
[366400070,1750231839654,-440.4360528,0.00019051,2]
[366400071,1750231839664,-500.0,0.00019051,2]
[366400072,1750231839674,-500.0,0.00019051,2]
[366400073,1750231839685,-500.0,0.00019051,2]
[366400074,1750231839695,-500.0,0.00019051,2]
[366400075,1750231839705,-500.0,0.00019051,2]
[366400076,1750231839716,-500.0,0.00019051,2]
[366400077,1750231839726,-500.0,0.00019051,2]
[366400078,1750231839736,-500.0,0.00019051,2]
[366400079,1750231839746,-555.80483144,0.00019051,2]
[366400080,1750231839756,-500.0,0.00019051,2]
[366400081,1750231839767,-500.0,0.00019051,2]
[366400082,1750231839777,-500.0,0.00019051,2]
[366400083,1750231839787,-437.66072089,0.00019051,2]
[366400084,1750231839797,-500.0,0.00019051,2]
[366400085,1750231839807,-555.80483144,0.00019051,2]
[366400086,1750231839816,-500.0,0.00019051,2]
[366400087,1750231839827,-500.0,0.00019051,2]
[366400088,1750231839837,-500.0,0.00019051,2]
[366400089,1750231839849,-500.0,0.00019051,2]
[366400090,1750231839858,-500.0,0.00019051,2]
[366400091,1750231839868,-500.0,0.00019051,2]
[366400092,1750231839878,-555.80483144,0.00019051,2]
[366400094,1750231839889,-500.0,0.00019051,2]
[366400097,1750231839899,-500.0,0.00019051,2]
[366400099,1750231839909,-500.0,0.00019051,2]
[366400101,1750231839920,-555.80483144,0.00019051,2]
[366400104,1750231839930,-500.0,0.00019051,2]
[366400106,1750231839941,-500.0,0.00019051,2]
[366400108,1750231839950,-500.0,0.00019051,2]
[366400110,1750231839959,-500.0,0.00019051,2]
[366400112,1750231839969,-500.0,0.00019051,2]
[366400114,1750231839979,-555.80483144,0.00019051,2]
[366400116,1750231839988,-500.0,0.00019051,2]
[366400118,1750231839998,-377.24041609,0.00019051,2]
[366400120,1750231840008,-555.80483144,0.00019051,2]
[366400122,1750231840018,-500.0,0.00019051,2]
[366400124,1750231840028,-500.0,0.00019051,2]
[366400126,1750231840037,-160.63466854,0.00019051,2]
[366400128,1750231840047,-500.0,0.00019051,2]
[366400130,1750231840057,-555.80483144,0.00019051,2]
[366400132,1750231840067,-500.0,0.00019051,2]
[366400134,1750231840077,-588.01477954,0.00019051,2]
[366400136,1750231840087,-500.0,0.00019051,2]
[366400138,1750231840097,-500.0,0.00019051,2]
[366400140,1750231840107,-500.0,0.00019051,2]
[366400142,1750231840117,-555.80483144,0.00019051,2]
[366400145,1750231840127,-500.0,0.00019051,2]
[366400148,1750231840136,-500.0,0.00019051,2]
[366400151,1750231840146,-555.80483144,0.00019051,2]
[366400154,1750231840155,-500.0,0.00019051,2]
[366400157,1750231840165,-500.0,0.00019051,2]
[366400160,1750231840175,-555.80483144,0.00019051,2]
[366400163,1750231840184,-500.0,0.00019051,2]
[366400166,1750231840194,-500.0,0.00019051,2]
[366400169,1750231840204,-500.0,0.00019051,2]
[366400172,1750231840214,-555.80483144,0.00019051,2]
[366400175,1750231840223,-500.0,0.00019051,2]
[366400178,1750231840233,-500.0,0.00019051,2]
[366400180,1750231840243,-555.80483144,0.00019051,2]
[366400183,1750231840252,-500.0,0.00019051,2]
[366400186,1750231840262,-500.0,0.00019051,2]
[366400189,1750231840271,-555.80483144,0.00019051,2]
[366400192,1750231840281,-500.0,0.00019051,2]
[366400195,1750231840290,-500.0,0.00019051,2]
[366400198,1750231840301,-555.80483144,0.00019051,2]
[366400201,1750231840311,-500.0,0.00019051,2]
[366400204,1750231840320,-500.0,0.00019051,2]
[366400207,1750231840330,-555.80483144,0.00019051,2]
[366400210,1750231840340,-500.0,0.00019051,2]
[366400213,1750231840350,-639.50844163,0.00019051,2]
[366400216,1750231840360,-555.80483144,0.00019051,2]
[366400219,1750231840369,-500.0,0.00019051,2]
[366400221,1750231840379,-555.80483144,0.00019051,2]
[366400225,1750231840390,-500.0,0.00019051,2]
[366400228,1750231840399,-500.0,0.00019051,2]
[366400231,1750231840409,-555.80483144,0.00019051,2]
[366400234,1750231840419,-500.0,0.00019051,2]
[366400239,1750231840428,-500.0,0.00019051,2]
[366400281,1750231840565,-555.80483144,0.00019051,2]
[366400285,1750231840575,-500.0,0.00019051,2]
[366400288,1750231840585,-500.0,0.00019051,2]
[366400291,1750231840594,-555.80483144,0.00019051,2]
[366400294,1750231840604,-500.0,0.00019051,2]
[366400297,1750231840613,-555.80483144,0.00019051,2]
[366400300,1750231840623,-500.0,0.00019051,2]
[366400302,1750231840632,-555.80483144,0.00019051,2]
[366400306,1750231840642,-555.80483144,0.00019051,2]
[366400309,1750231840652,-500.0,0.00019051,2]
[366400311,1750231840661,-555.80483144,0.00019051,2]
[366400312,1750231840671,-555.80483144,0.00019051,2]
[366400314,1750231840680,-300.0,0.00019053,2]
[366400317,1750231840690,-50000.0,0.00019053,2]
[366400320,1750231840699,-160.0,0.0001906,2]
[366400322,1750231840708,-816.34,0.00019062,2]
[366400325,1750231840718,-537.978401,0.00019073,2]
[366400328,1750231840727,-639.77536102,0.00019073,2]
[366400332,1750231840737,-502.41067628,0.00019073,2]
[366400335,1750231840747,-501.68685801,0.00019073,2]
[366400337,1750231840756,-500.0,0.00019073,2]
[366400340,1750231840766,-500.0,0.00019073,2]
[366400343,1750231840775,-500.0,0.00019073,2]
[366400345,1750231840785,-388.00089879,0.00019073,2]
[366400347,1750231840794,-500.0,0.00019073,2]
[366400349,1750231840803,-500.0,0.00019073,2]
[366400351,1750231840813,-286.21130082,0.00019073,2]
[366400353,1750231840822,-283.90234346,0.00019073,2]
[366400355,1750231840832,-4707.39789097,0.00019126,2]
[366400357,1750231840846,-500.0,0.00019178,2]
[366400358,1750231840854,-500.0,0.00019178,2]
[366400361,1750231840864,-237.39971949,0.00019178,2]
[366400364,1750231840873,-184.886818,0.00019178,2]
[366400367,1750231840883,-155.0,0.00019262,2]
[366400370,1750231840892,-1000.0,0.00019621,2]
[366400373,1750231840902,-1000.0,0.00019621,2]
[366400375,1750231840911,-635.3,0.00019647,2]
[366400377,1750231840920,-467.12007467,0.00019827,2]
[366400379,1750231840929,-400.0,0.0002,2]
[366400381,1750231840939,-1500.0,0.00020168,2]
[366400383,1750231840948,-567.7672114,0.000202,2]
[366400385,1750231840957,-567.76721111,0.000202,2]
[366400387,1750231840967,-567.76721111,0.00020314,3]
[366400389,1750231840976,-160.0,0.0002043,2]
[366400391,1750231840986,-567.76721111,0.00020521,3]
[366400393,1750231840996,-540.01155822,0.00020547,2]
[366400395,1750231841006,-1185.25,0.000206,2]
[366400397,1750231841015,-2670.84,0.000206,2]
[366400399,1750231841024,-202.801,0.00020635,2]
[366400401,1750231841033,-467.12007467,0.00020701,2]
[366400403,1750231841042,-2000.0,0.00020716,2]
[366400405,1750231841052,-567.76721111,0.00020728,3]
[366400407,1750231841061,-420.0,0.00020765,2]
[366400409,1750231841071,-420.0,0.00020765,2]
[366400411,1750231841080,-420.0,0.00020767,2]
[366400413,1750231841089,-1680.0,0.00020866,2]
[366400415,1750231841099,-567.76721111,0.00020934,4]
[366400417,1750231841109,-567.76721111,0.00021141,4]
[366400419,1750231841118,-2500.0,0.00021264,2]
[366400421,1750231841128,-567.76721111,0.00021348,5]
[366400423,1750231841137,-1270.6,0.00021433,2]
[366400425,1750231841146,-567.76721111,0.00021555,5]
[366400427,1750231841155,-467.12007467,0.00021575,2]
[366400429,1750231841165,-567.76721111,0.00021762,5]
[366400431,1750231841174,-160.0,0.000218,2]
[366400433,1750231841185,-1000.0,0.00021812,2]
[366400435,1750231841195,-460.0,0.00021917,6]
[366400437,1750231841204,-460.0,0.00021917,6]
[366400439,1750231841214,-440.0,0.00021917,6]
[366400441,1750231841224,-430.0,0.00021917,6]
[366400443,1750231841234,-440.0,0.00021917,6]
[366400445,1750231841243,-1024.89975299,0.00021917,6]
[366400447,1750231841253,-460.0,0.00021917,6]
[366400449,1750231841262,-243.27392431,0.00021917,6]
[366400451,1750231841273,-386.72222456,0.00021917,6]
[366400453,1750231841283,-460.0,0.00021917,6]
[366400455,1750231841292,-460.0,0.00021917,6]
[366400457,1750231841302,-434.93396424,0.00021917,6]
[366400459,1750231841312,-420.0,0.00021917,6]
[366400461,1750231841322,-460.0,0.00021917,6]
[366400463,1750231841331,-460.0,0.00021917,6]
[366400465,1750231841341,-460.0,0.00021917,6]
[366400467,1750231841351,-261.62673082,0.00021917,6]
[366400469,1750231841360,-460.0,0.00021917,6]
[366400471,1750231841370,-341.51226882,0.00021917,6]
[366400472,1750231841380,-460.0,0.00021917,6]
[366400473,1750231841390,-440.0,0.00021917,6]
[366400474,1750231841399,-460.0,0.00021917,6]
[366400475,1750231841408,-460.0,0.00021917,6]
[366400477,1750231841417,-500.0,0.00021917,2]
[366400479,1750231841427,-431.52640426,0.00021917,6]
[366400481,1750231841437,-460.0,0.00021917,6]
[366400483,1750231841446,-442.48983005,0.00021917,6]
[366400485,1750231841455,-430.0,0.00021917,6]
[366400487,1750231841464,-460.0,0.00021917,2]
[366400489,1750231841473,-432.53888901,0.00021917,6]
[366400491,1750231841483,-460.0,0.00021917,6]
[366400493,1750231841493,-460.0,0.00021917,6]
[366400495,1750231841502,-460.0,0.00021917,6]
[366400497,1750231841513,-460.0,0.00021917,6]
[366400499,1750231841522,-440.0,0.00021917,6]
[366400501,1750231841532,-500.0,0.00021917,6]
[366400503,1750231841542,-460.0,0.00021917,6]
[366400505,1750231841552,-460.0,0.00021917,6]
[366400507,1750231841561,-460.0,0.00021917,6]
[366400509,1750231841570,-460.0,0.00021917,6]
[366400511,1750231841579,-460.0,0.00021917,6]
[366400513,1750231841588,-460.0,0.00021917,6]
[366400515,1750231841598,-172.82083208,0.00021917,5]
[366400517,1750231841607,-460.0,0.00021917,6]
[366400519,1750231841618,-431.52540205,0.00021917,6]
[366400521,1750231841627,-301.95008133,0.00021917,6]
[366400523,1750231841637,-460.0,0.00021917,6]
[366400525,1750231841646,-460.0,0.00021917,6]
[366400527,1750231841656,-326.19704284,0.00021917,6]
[366400529,1750231841665,-440.0,0.00021917,6]
[366400531,1750231841675,-483.71191376,0.00021917,6]
[366400533,1750231841684,-346.98363686,0.00021917,6]
[366400535,1750231841694,-382.4391348,0.00021917,6]
[366400537,1750231841703,-460.0,0.00021917,6]
[366400539,1750231841713,-460.0,0.00021917,6]
[366400541,1750231841722,-460.0,0.00021917,6]
[366400543,1750231841731,-460.0,0.00021917,6]
[366400544,1750231841740,-224.75107337,0.00021917,6]
[366400546,1750231841750,-460.0,0.00021917,6]
[366400548,1750231841759,-410.0,0.00021917,6]
[366400550,1750231841768,-246.23983499,0.00021917,6]
[366400552,1750231841778,-460.0,0.00021917,6]
[366400554,1750231841787,-257.24,0.00021917,6]
[366400556,1750231841797,-460.0,0.00021917,6]
[366400558,1750231841807,-460.0,0.00021917,6]
[366400560,1750231841816,-440.0,0.00021917,6]
[366400562,1750231841826,-460.0,0.00021917,6]
[366400564,1750231841838,-253.78327231,0.00021917,6]
[366400566,1750231841850,-460.0,0.00021917,6]
[366400568,1750231841859,-430.0,0.00021917,6]
[366400571,1750231841869,-460.0,0.00021917,6]
[366400572,1750231841879,-348.08143489,0.00021917,6]
[366400574,1750231841889,-460.0,0.00021917,6]
[366400576,1750231841898,-460.0,0.00021917,6]
[366400578,1750231841908,-440.0,0.00021917,6]
[366400581,1750231841919,-460.0,0.00021917,6]
[366400583,1750231841929,-460.0,0.00021917,6]
[366400585,1750231841939,-460.0,0.00021917,6]
[366400587,1750231841948,-460.0,0.00021917,6]
[366400588,1750231841958,-460.0,0.00021917,6]
[366400591,1750231841968,-460.0,0.00021917,6]
[366400593,1750231841977,-460.0,0.00021917,6]
[366400595,1750231841986,-440.0,0.00021917,6]
[366400597,1750231841996,-430.77599743,0.00021917,6]
[366400599,1750231842005,-460.0,0.00021917,6]
[366400600,1750231842014,-500.0,0.00021917,6]
[366400602,1750231842024,-500.0,0.00021917,6]
[366400604,1750231842034,-500.0,0.00021917,6]
[366400606,1750231842043,-460.0,0.00021917,6]
[366400608,1750231842053,-500.0,0.00021917,6]
[366400609,1750231842066,-351.10482789,0.00021917,6]
[366400610,1750231842076,-460.0,0.00021917,6]
[366400611,1750231842085,-460.0,0.00021917,6]
[366400612,1750231842094,-396.36049359,0.00021917,6]
[366400614,1750231842104,-440.0,0.00021917,6]
[366400616,1750231842114,-430.65786471,0.00021917,6]
[366400618,1750231842123,-420.0,0.00021917,6]
[366400620,1750231842133,-440.0,0.00021917,6]
[366400622,1750231842143,-440.0,0.00021917,6]
[366400624,1750231842152,-460.0,0.00021917,6]
[366400626,1750231842162,-420.0,0.00021917,6]
[366400628,1750231842172,-460.0,0.00021917,6]
[366400630,1750231842181,-460.0,0.00021917,6]
[366400632,1750231842191,-460.0,0.00021917,6]
[366400634,1750231842201,-460.0,0.00021917,6]
[366400636,1750231842211,-460.0,0.00021917,6]
[366400638,1750231842220,-440.0,0.00021917,6]
[366400640,1750231842230,-460.0,0.00021917,6]
[366400642,1750231842240,-460.0,0.00021917,6]
[366400644,1750231842249,-460.0,0.00021917,6]
[366400646,1750231842259,-460.0,0.00021917,6]
[366400648,1750231842269,-460.0,0.00021917,6]
[366400650,1750231842279,-460.0,0.00021917,6]
[366400652,1750231842289,-440.0,0.00021917,6]
[366400654,1750231842299,-643.49,0.00021917,6]
[366400656,1750231842308,-440.0,0.00021917,6]
[366400658,1750231842318,-460.0,0.00021917,6]
[366400660,1750231842327,-460.0,0.00021917,6]
[366400662,1750231842337,-347.42273064,0.00021917,6]
[366400664,1750231842347,-430.0,0.00021917,6]
[366400666,1750231842356,-460.0,0.00021917,6]
[366400667,1750231842366,-192.6235388,0.00021917,6]
[366400670,1750231842375,-460.0,0.00021917,6]
[366400672,1750231842385,-460.0,0.00021917,6]
[366400674,1750231842395,-460.0,0.00021917,6]
[366400676,1750231842404,-460.0,0.00021917,6]
[366400678,1750231842414,-489.8992525,0.00021917,6]
[366400680,1750231842424,-518.73,0.00021917,6]
[366400682,1750231842435,-460.0,0.00021917,6]
[366400684,1750231842444,-460.0,0.00021917,6]
[366400686,1750231842453,-460.0,0.00021917,6]
[366400688,1750231842463,-430.0,0.00021917,6]
[366400690,1750231842472,-446.54532383,0.00021917,6]
[366400692,1750231842481,-460.0,0.00021917,6]
[366400694,1750231842491,-460.0,0.00021917,6]
[366400696,1750231842500,-420.0,0.00021917,6]
[366400698,1750231842510,-1625.78,0.00021917,6]
[366400700,1750231842519,-460.0,0.00021917,6]
[366400702,1750231842528,-1085.1,0.00021917,6]
[366400704,1750231842538,-1859.13,0.00021917,6]
[366400706,1750231842547,-430.0,0.00021917,6]
[366400708,1750231842557,-460.0,0.00021917,6]
[366400710,1750231842566,-460.0,0.00021917,6]
[366400711,1750231842575,-460.0,0.00021917,6]
[366400713,1750231842585,-460.0,0.00021917,6]
[366400715,1750231842595,-460.0,0.00021917,6]
[366400717,1750231842605,-460.0,0.00021917,6]
[366400719,1750231842614,-1458.99,0.00021917,6]
[366400721,1750231842623,-420.0,0.00021917,6]
[366400723,1750231842633,-460.0,0.00021917,6]
[366400725,1750231842642,-460.0,0.00021917,6]
[366400727,1750231842651,-460.0,0.00021917,6]
[366400729,1750231842661,-1069.16,0.00021917,6]
[366400731,1750231842670,-460.0,0.00021917,6]
[366400733,1750231842678,-460.0,0.00021917,6]
[366400736,1750231842688,-460.0,0.00021917,6]
[366400737,1750231842698,-460.0,0.00021917,6]
[366400738,1750231842707,-442.2394101,0.00021917,6]
[366400739,1750231842716,-551.91646431,0.00021917,6]
[366400740,1750231842725,-507.45,0.00021917,6]
[366400742,1750231842734,-460.0,0.00021917,6]
[366400744,1750231842743,-460.0,0.00021917,6]
[366400746,1750231842753,-420.0,0.00021917,6]
[366400748,1750231842763,-460.0,0.00021917,6]
[366400750,1750231842772,-460.0,0.00021917,6]
[366400752,1750231842782,-796.34,0.00021917,6]
[366400755,1750231842791,-492.91,0.00021917,6]
[366400757,1750231842800,-460.0,0.00021917,6]
[366400761,1750231842810,-591.81886293,0.00021917,6]
[366400763,1750231842819,-460.0,0.00021917,6]
[366400765,1750231842828,-460.0,0.00021917,6]
[366400767,1750231842840,-460.0,0.00021917,6]
[366400769,1750231842849,-460.0,0.00021917,6]
[366400771,1750231842858,-460.0,0.00021917,6]
[366400774,1750231842867,-460.0,0.00021917,6]
[366400776,1750231842876,-460.0,0.00021917,6]
[366400779,1750231842886,-530.82,0.00021917,6]
[366400782,1750231842895,-229.24496036,0.00021917,6]
[366400785,1750231842904,-460.0,0.00021917,6]
[366400787,1750231842913,-460.0,0.00021917,6]
[366400789,1750231842922,-460.0,0.00021917,6]
[366400792,1750231842931,-460.0,0.00021917,6]
[366400794,1750231842940,-460.0,0.00021917,6]
[366400796,1750231842950,-707.66,0.00021917,6]
[366400798,1750231842961,-420.0,0.00021917,6]
[366400799,1750231842970,-460.0,0.00021917,6]
[366400800,1750231842979,-460.0,0.00021917,6]
[366400802,1750231842988,-460.0,0.00021917,6]
[366400804,1750231842998,-460.0,0.00021917,6]
[366400806,1750231843007,-592.50088203,0.00021917,6]
[366400808,1750231843016,-430.0,0.00021917,6]
[366400810,1750231843025,-460.0,0.00021917,6]
[366400812,1750231843034,-460.0,0.00021917,6]
[366400814,1750231843043,-460.0,0.00021917,6]
[366400816,1750231843053,-460.0,0.00021917,6]
[366400829,1750231843155,-460.0,0.00021917,6]
[366400831,1750231843175,-331.25063392,0.00021917,6]
[366400833,1750231843185,-418.62138534,0.00021917,6]
[366400835,1750231843195,-460.0,0.00021917,6]
[366400837,1750231843205,-460.0,0.00021917,6]